fUST/lending_fUST_20250930
["ID","MTS","AMOUNT","RATE_DAILY","PERIOD"]
[388440989,1759169439854,-480.0,0.00023433,2]
[388440991,1759169439864,-480.0,0.00023433,2]
[388440993,1759169439875,-480.0,0.00023433,2]
[388440994,1759169439884,-567.5,0.00023433,2]
[388440996,1759169439894,-472.11652225,0.00023433,2]
[388440998,1759169439904,-480.0,0.00023433,2]
[388440999,1759169439913,-1115.2,0.00023433,2]
[388441001,1759169439923,-480.0,0.00023433,2]
[388441003,1759169439932,-480.0,0.00023433,2]
[388441005,1759169439942,-480.0,0.00023433,2]
[388441007,1759169439951,-480.0,0.00023433,2]
[388441009,1759169439960,-480.0,0.00023433,2]
[388441011,1759169439968,-480.0,0.00023433,2]
[388441013,1759169439977,-480.0,0.00023433,2]
[388441015,1759169439986,-480.0,0.00023433,2]
[388441017,1759169439995,-480.0,0.00023433,2]
[388441018,1759169440004,-595.8,0.00023433,2]
[388441020,1759169440013,-480.0,0.00023433,2]
[388441022,1759169440023,-480.0,0.00023433,2]
[388441024,1759169440032,-583.85092848,0.00023433,2]
[388441026,1759169440041,-568.5,0.00023433,2]
[388441028,1759169440050,-480.0,0.00023433,2]
[388441030,1759169440058,-480.0,0.00023433,2]
[388441032,1759169440067,-480.0,0.00023433,2]
[388441034,1759169440076,-480.0,0.00023433,2]
[388441035,1759169440085,-480.0,0.00023433,2]
[388441037,1759169440094,-480.0,0.00023433,2]
[388441039,1759169440104,-480.0,0.00023433,2]
[388441041,1759169440113,-544.26,0.00023433,2]
[388441043,1759169440122,-480.0,0.00023433,2]
[388441045,1759169440131,-602.91,0.00023433,2]
[388441047,1759169440140,-480.0,0.00023433,2]
[388441049,1759169440149,-480.0,0.00023433,2]
[388441051,1759169440158,-549.82,0.00023433,2]
[388441052,1759169440167,-480.0,0.00023433,2]
[388441054,1759169440176,-569.74,0.00023433,2]
[388441055,1759169440185,-482.38821703,0.00023433,2]
[388441057,1759169440194,-496.22,0.00023433,2]
[388441059,1759169440203,-480.0,0.00023433,2]
[388441060,1759169440213,-381.79477701,0.00023433,2]
[388441062,1759169440222,-480.0,0.00023433,2]
[388441063,1759169440231,-480.0,0.00023433,2]
[388441064,1759169440241,-862.18,0.00023433,2]
[388441065,1759169440250,-480.0,0.00023433,2]
[388441066,1759169440260,-480.0,0.00023433,2]
[388441067,1759169440270,-1145.66,0.00023433,2]
[388441068,1759169440280,-480.0,0.00023433,2]
[388441069,1759169440290,-867.48,0.00023433,2]
[388441070,1759169440299,-480.0,0.00023433,2]
[388441071,1759169440309,-480.0,0.00023433,2]
[388441072,1759169440319,-480.0,0.00023433,2]
[388441073,1759169440329,-534.48223388,0.00023433,2]
[388441074,1759169440338,-848.01,0.00023433,2]
[388441075,1759169440348,-480.0,0.00023433,2]
[388441076,1759169440357,-423.46784794,0.00023433,2]
[388441077,1759169440367,-480.0,0.00023433,2]
[388441078,1759169440377,-480.0,0.00023433,2]
[388441079,1759169440387,-480.0,0.00023433,2]
[388441080,1759169440396,-669.24,0.00023433,2]
[388441081,1759169440406,-480.0,0.00023433,2]
[388441082,1759169440417,-653.62,0.00023433,2]
[388441083,1759169440431,-480.0,0.00023433,2]
[388441084,1759169440441,-480.0,0.00023433,2]
[388441085,1759169440450,-480.0,0.00023433,2]
[388441086,1759169440460,-480.0,0.00023433,2]
[388441087,1759169440471,-480.0,0.00023433,2]
[388441088,1759169440481,-480.0,0.00023433,2]
[388441089,1759169440491,-1115.66,0.00023433,2]
[388441090,1759169440501,-480.0,0.00023433,2]
[388441091,1759169440512,-480.0,0.00023433,2]
[388441092,1759169440521,-480.0,0.00023433,2]
[388441093,1759169440531,-480.0,0.00023433,2]
[388441094,1759169440541,-402.17092257,0.00023433,2]
[388441095,1759169440551,-480.0,0.00023433,2]
[388441096,1759169440560,-533.37,0.00023433,2]
[388441097,1759169440571,-480.0,0.00023433,2]
[388441098,1759169440580,-480.0,0.00023433,2]
[388441099,1759169440591,-480.0,0.00023433,2]
[388441100,1759169440601,-480.0,0.00023433,2]
[388441101,1759169440611,-480.0,0.00023433,2]
[388441102,1759169440621,-487.59,0.00023433,2]
[388441103,1759169440631,-480.0,0.00023433,2]
[388441104,1759169440641,-480.0,0.00023433,2]
[388441105,1759169440651,-480.0,0.00023433,2]
[388441106,1759169440662,-480.0,0.00023433,2]
[388441107,1759169440672,-480.0,0.00023433,2]
[388441108,1759169440682,-510.72,0.00023433,2]
[388441109,1759169440692,-515.97,0.00023433,2]
[388441110,1759169440702,-480.0,0.00023433,2]
[388441111,1759169440711,-480.0,0.00023433,2]
[388441112,1759169440721,-480.0,0.00023433,2]
[388441113,1759169440731,-485.0038613,0.00023433,2]
[388441114,1759169440740,-480.0,0.00023433,2]
[388441115,1759169440750,-480.0,0.00023433,2]
[388441116,1759169440760,-480.0,0.00023433,2]
[388441117,1759169440770,-480.0,0.00023433,2]
[388441118,1759169440780,-881.98,0.00023433,2]
[388441119,1759169440789,-758.97,0.00023433,2]
[388441120,1759169440799,-480.0,0.00023433,2]
[388441121,1759169440808,-789.86,0.00023433,2]
[388441122,1759169440818,-654.68,0.00023433,2]
[388441123,1759169440827,-480.0,0.00023433,2]
[388441124,1759169440837,-480.0,0.00023433,2]
[388441125,1759169440846,-513.68,0.00023433,2]
[388441126,1759169440855,-480.0,0.00023433,2]
[388441127,1759169440866,-2023.29,0.00023433,2]
[388441128,1759169440875,-480.0,0.00023433,2]
[388441129,1759169440885,-480.0,0.00023433,2]
[388441130,1759169440895,-1930.02,0.00023433,2]
[388441131,1759169440904,-480.0,0.00023433,2]
[388441132,1759169440917,-480.0,0.00023433,2]
[388441133,1759169440927,-2504.81,0.00023433,2]
[388441134,1759169440936,-505.18,0.00023433,2]
[388441135,1759169440946,-480.0,0.00023433,2]
[388441136,1759169440955,-480.0,0.00023433,2]
[388441137,1759169440965,-496.7,0.00023433,2]
[388441138,1759169440975,-754.71,0.00023433,2]
[388441139,1759169440984,-1642.53,0.00023433,2]
[388441140,1759169440994,-487.19,0.00023433,2]
[388441141,1759169441004,-480.0,0.00023433,2]
[388441142,1759169441016,-480.0,0.00023433,2]
[388441143,1759169441025,-991.58,0.00023433,2]
[388441144,1759169441035,-759.5,0.00023433,2]
[388441145,1759169441044,-480.0,0.00023433,2]
[388441146,1759169441053,-1142.9,0.00023433,2]
[388441147,1759169441063,-480.0,0.00023433,2]
[388441148,1759169441073,-480.0,0.00023433,2]
[388441149,1759169441084,-480.0,0.00023433,2]
[388441150,1759169441094,-1247.47,0.00023433,2]
[388441151,1759169441104,-480.0,0.00023433,2]
[388441152,1759169441114,-1111.08,0.00023433,2]
[388441153,1759169441124,-1067.81,0.00023433,2]
[388441154,1759169441133,-480.0,0.00023433,2]
[388441155,1759169441143,-636.06,0.00023433,2]
[388441156,1759169441152,-480.0,0.00023433,2]
[388441157,1759169441162,-480.0,0.00023433,2]
[388441158,1759169441172,-480.0,0.00023433,2]
[388441159,1759169441181,-480.0,0.00023433,2]
[388441160,1759169441191,-4596.88,0.00023433,2]
[388441161,1759169441201,-1908.11,0.00023433,2]
[388441162,1759169441210,-583.03,0.00023433,2]
[388441163,1759169441220,-481.40269373,0.00023433,2]
[388441164,1759169441230,-2012.06,0.00023433,2]
[388441165,1759169441240,-782.14,0.00023433,2]
[388441166,1759169441250,-480.0,0.00023433,2]
[388441167,1759169441260,-480.0,0.00023433,2]
[388441168,1759169441271,-480.0,0.00023433,2]
[388441169,1759169441281,-480.0,0.00023433,2]
[388441170,1759169441291,-1007.45,0.00023433,2]
[388441171,1759169441301,-617.06,0.00023433,2]
[388441172,1759169441311,-584.64,0.00023433,2]
[388441173,1759169441321,-581.59,0.00023433,2]
[388441174,1759169441331,-480.0,0.00023433,2]
[388441175,1759169441341,-764.23,0.00023433,2]
[388441176,1759169441351,-480.0,0.00023433,2]
[388441177,1759169441361,-480.0,0.00023433,2]
[388441178,1759169441371,-4512.89,0.00023433,2]
[388441179,1759169441380,-482.05150474,0.00023433,2]
[388441180,1759169441390,-480.0,0.00023433,2]
[388441181,1759169441399,-572.29,0.00023433,2]
[388441182,1759169441411,-2038.46,0.00023433,2]
[388441183,1759169441423,-480.0,0.00023433,2]
[388441184,1759169441436,-843.73,0.00023433,2]
[388441185,1759169441447,-679.83,0.00023433,2]
[388441186,1759169441457,-480.0,0.00023433,2]
[388441187,1759169441468,-505.06,0.00023433,2]
[388441188,1759169441478,-2363.06,0.00023433,2]
[388441189,1759169441488,-756.07,0.00023433,2]
[388441190,1759169441499,-480.0,0.00023433,2]
[388441191,1759169441510,-480.0,0.00023433,2]
[388441192,1759169441520,-615.45,0.00023433,2]
[388441193,1759169441530,-731.82,0.00023433,2]
[388441194,1759169441540,-480.0,0.00023433,2]
[388441195,1759169441549,-956.83,0.00023433,2]
[388441196,1759169441559,-480.0,0.00023433,2]
[388441197,1759169441571,-805.63,0.00023433,2]
[388441198,1759169441582,-5180.78,0.00023433,2]
[388441199,1759169441594,-743.6,0.00023433,2]
[388441200,1759169441604,-1723.74,0.00023433,2]
[388441201,1759169441614,-559.24,0.00023433,2]
[388441202,1759169441627,-1192.02,0.00023433,2]
[388441203,1759169441638,-1206.39,0.00023433,2]
[388441204,1759169441649,-480.0,0.00023433,2]
[388441205,1759169441659,-1011.9,0.00023433,2]
[388441206,1759169441669,-480.0,0.00023433,2]
[388441207,1759169441679,-480.0,0.00023433,2]
[388441208,1759169441690,-500.0,0.00023433,2]
[388441209,1759169441701,-505.33678252,0.00023433,2]
[388441210,1759169441711,-480.0,0.00023433,2]
[388441211,1759169441722,-499.50333973,0.00023433,2]
[388441212,1759169441732,-480.0,0.00023433,2]
[388441213,1759169441742,-503.59871345,0.00023435,2]
[388441214,1759169441751,-480.0,0.00023435,2]
[388441215,1759169441761,-480.0,0.00023435,2]
[388441216,1759169441771,-480.0,0.00023435,2]
[388441217,1759169441781,-480.0,0.00023435,2]
[388441218,1759169441790,-480.0,0.00023435,2]
[388441219,1759169441800,-480.0,0.00023435,2]
[388441220,1759169441810,-480.0,0.00023435,2]
[388441221,1759169441819,-480.0,0.00023435,2]
[388441222,1759169441831,-480.0,0.00023435,2]
[388441223,1759169441842,-480.0,0.00023435,2]
[388441224,1759169441854,-480.0,0.00023435,2]
[388441225,1759169441865,-480.0,0.00023435,2]
[388441226,1759169441875,-480.0,0.00023435,2]
[388441227,1759169441886,-480.0,0.00023435,2]
[388441228,1759169441897,-508.12099485,0.00023435,2]
[388441229,1759169441908,-480.0,0.00023435,2]
[388441230,1759169441919,-480.0,0.00023435,2]
[388441231,1759169441929,-480.0,0.00023435,2]
[388441232,1759169441939,-480.0,0.00023435,2]
[388441233,1759169441948,-480.0,0.00023435,2]
[388441234,1759169441958,-580.49,0.00023435,2]
[388441235,1759169441968,-480.0,0.00023435,2]
[388441236,1759169441978,-436.50988295,0.00023435,2]
[388441237,1759169441988,-500.0,0.00023435,2]
[388441238,1759169441998,-480.0,0.00023435,2]
[388441239,1759169442007,-480.0,0.00023435,2]
[388441240,1759169442017,-1129.63,0.00023435,2]
[388441241,1759169442027,-480.0,0.00023435,2]
[388441242,1759169442036,-480.0,0.00023435,2]
[388441243,1759169442048,-480.0,0.00023435,2]
[388441244,1759169442058,-480.0,0.00023435,2]
[388441245,1759169442068,-480.0,0.00023435,2]
[388441246,1759169442079,-480.0,0.00023435,2]
[388441247,1759169442090,-1225.62,0.00023435,2]
[388441248,1759169442099,-480.0,0.00023435,2]
[388441249,1759169442110,-480.0,0.00023435,2]
[388441250,1759169442119,-480.0,0.00023435,2]
[388441251,1759169442131,-480.0,0.00023435,2]
[388441252,1759169442140,-502.99,0.00023435,2]
[388441253,1759169442150,-582.71,0.00023435,2]
[388441254,1759169442160,-480.0,0.00023435,2]
[388441255,1759169442170,-1003.21,0.00023435,2]
[388441256,1759169442180,-480.0,0.00023435,2]
[388441257,1759169442190,-480.0,0.00023435,2]
[388441258,1759169442200,-480.0,0.00023435,2]
[388441259,1759169442210,-480.0,0.00023435,2]
[388441260,1759169442220,-361.16106632,0.00023435,2]
[388441261,1759169442231,-480.0,0.00023435,2]
[388441262,1759169442241,-480.0,0.00023435,2]
[388441263,1759169442251,-480.0,0.00023435,2]
[388441264,1759169442261,-523.34,0.00023435,2]
[388441265,1759169442271,-480.0,0.00023435,2]
[388441266,1759169442281,-480.0,0.00023435,2]
[388441267,1759169442291,-480.0,0.00023435,2]
[388441268,1759169442300,-480.0,0.00023435,2]
[388441269,1759169442310,-487.06,0.00023435,2]
[388441270,1759169442319,-480.0,0.00023435,2]
[388441271,1759169442329,-480.0,0.00023435,2]
[388441272,1759169442339,-480.0,0.00023435,2]
[388441273,1759169442349,-234.1288493,0.00023435,2]
[388441274,1759169442360,-803.64,0.00023435,2]
[388441275,1759169442370,-480.0,0.00023435,2]
[388441276,1759169442380,-480.0,0.00023435,2]
[388441277,1759169442575,-480.0,0.00023435,2]
[388441278,1759169442595,-480.0,0.00023435,2]
[388441279,1759169442605,-480.0,0.00023435,2]
[388441281,1759169442615,-515.73,0.00023435,2]
[388441283,1759169442624,-488.36,0.00023435,2]
[388441284,1759169442634,-480.0,0.00023435,2]
[388441285,1759169442643,-480.0,0.00023435,2]
[388441286,1759169442652,-480.0,0.00023435,2]
[388441287,1759169442663,-480.0,0.00023435,2]
[388441288,1759169442672,-480.0,0.00023435,2]
[388441289,1759169442681,-6600.83507429,0.00023436,2]
[388441290,1759169442691,-542.68392804,0.00023436,2]
[388441291,1759169442701,-151.0,0.00023437,2]
[388441293,1759169442710,-151.0,0.00023437,2]
[388441295,1759169442719,-500.0,0.00023437,2]
[388441297,1759169442729,-500.0,0.00023437,2]
[388441298,1759169442738,-500.0,0.00023437,2]
[388441299,1759169442747,-2851.5735693,0.00023472,2]
[388441300,1759169442756,-500.0,0.00023473,2]
[388441301,1759169442768,-500.0,0.00023473,2]
[388441302,1759169442778,-500.0,0.00023473,2]
[388441303,1759169442787,-369.04091352,0.00023473,2]
[388441304,1759169442797,-500.0,0.00023473,2]
[388441305,1759169442807,-500.0,0.00023473,2]
[388441306,1759169442817,-500.0,0.00023473,2]
[388441307,1759169442827,-500.0,0.00023473,2]
[388441308,1759169442837,-502.39929646,0.00023473,2]
[388441309,1759169442846,-500.0,0.00023473,2]
[388441310,1759169442855,-502.64759426,0.00023473,2]
[388441311,1759169442865,-150.0,0.00023473,2]
[388441312,1759169442875,-500.0,0.00023473,2]
[388441314,1759169442885,-500.0,0.00023473,2]
[388441315,1759169442895,-500.0,0.00023473,2]
[388441317,1759169442905,-500.0,0.00023473,2]
[388441319,1759169442915,-500.0,0.00023473,2]
[388441322,1759169442925,-500.0,0.00023473,2]
[388441325,1759169442934,-14492.1929608,0.00023599,2]
[388441327,1759169442943,-687.17,0.00023605,2]
[388441329,1759169442952,-5103.93684328,0.00023608,2]
[388441330,1759169442961,-480.0,0.00023608,2]
[388441333,1759169442970,-642.87,0.00023608,2]
[388441334,1759169442979,-155.1244069,0.0002361,2]
[388441336,1759169442989,-2851.5735693,0.00023611,2]
[388441338,1759169442998,-480.0,0.00023698,2]
[388441340,1759169443008,-480.0,0.00023698,2]
[388441342,1759169443019,-519.91,0.00023698,2]
[388441344,1759169443028,-480.0,0.00023698,2]
[388441346,1759169443037,-480.0,0.00023699,2]
[388441348,1759169443046,-480.0,0.00023699,2]
[388441350,1759169443056,-480.0,0.00023699,2]
[388441351,1759169443066,-480.0,0.00023699,2]
[388441353,1759169443077,-2598.37,0.00023699,2]
[388441355,1759169443086,-480.0,0.00023699,2]
[388441356,1759169443095,-480.0,0.00023699,2]
[388441358,1759169443105,-2068.93,0.00023699,2]
[388441359,1759169443114,-480.0,0.00023699,2]
[388441361,1759169443124,-976.09,0.00023699,2]
[388441362,1759169443134,-480.0,0.00023699,2]
[388441364,1759169443143,-1123.0,0.00023699,2]
[388441365,1759169443152,-480.0,0.00023699,2]
[388441366,1759169443161,-480.0,0.00023699,2]
[388441367,1759169443170,-480.0,0.00023699,2]
[388441368,1759169443179,-497.85,0.00023699,2]
[388441369,1759169443189,-692.44,0.00023699,2]
[388441370,1759169443198,-1617.79,0.00023699,2]
[388441371,1759169443207,-702.4,0.00023699,2]
[388441372,1759169443218,-480.0,0.00023699,2]
[388441373,1759169443227,-2146.27,0.00023699,2]
[388441374,1759169443237,-480.0,0.00023699,2]
[388441375,1759169443246,-538.09,0.00023699,2]
[388441377,1759169443255,-676.75,0.00023699,2]
[388441378,1759169443264,-781.63,0.00023699,2]
[388441380,1759169443273,-480.0,0.00023699,2]
[388441381,1759169443281,-596.77,0.00023699,2]
[388441382,1759169443290,-480.0,0.00023699,2]
[388441383,1759169443299,-683.17,0.00023699,2]
[388441384,1759169443307,-1383.81,0.00023699,2]
[388441385,1759169443316,-579.14,0.00023699,2]
[388441386,1759169443325,-992.48,0.00023699,2]
[388441387,1759169443333,-480.0,0.00023699,2]
[388441388,1759169443342,-480.0,0.00023699,2]
[388441389,1759169443350,-2204.38,0.00023699,2]
[388441390,1759169443359,-1274.66,0.00023699,2]
[388441391,1759169443367,-3570.8,0.00023699,2]
[388441392,1759169443376,-1968.14,0.00023699,2]
[388441393,1759169443385,-480.0,0.00023699,2]
[388441394,1759169443393,-480.0,0.00023699,2]
[388441395,1759169443402,-480.0,0.00023699,2]
[388441396,1759169443411,-606.88,0.00023699,2]
[388441397,1759169443420,-480.0,0.00023699,2]
[388441398,1759169443433,-480.0,0.00023699,2]
[388441399,1759169443442,-1366.64,0.00023699,2]
[388441400,1759169443451,-564.26,0.00023699,2]
[388441401,1759169443460,-480.0,0.00023699,2]
[388441402,1759169443469,-480.0,0.00023699,2]
[388441403,1759169443478,-3763.3,0.00023699,2]
[388441404,1759169443487,-480.0,0.00023699,2]
[388441405,1759169443496,-940.24,0.00023699,2]
[388441406,1759169443505,-8900.67,0.00023699,2]
[388441407,1759169443515,-394.31354082,0.00023699,2]
[388441408,1759169443524,-480.0,0.00023699,2]
[388441409,1759169443533,-480.0,0.00023699,2]
[388441410,1759169443542,-1088.53,0.00023699,2]
[388441411,1759169443551,-867.34,0.00023699,2]
[388441412,1759169443560,-480.0,0.00023699,2]
[388441413,1759169443568,-480.0,0.000237,2]
[388441414,1759169443578,-480.0,0.000237,2]
[388441415,1759169443586,-480.0,0.000237,2]
[388441416,1759169443596,-480.0,0.000237,2]
[388441417,1759169443605,-480.0,0.000237,2]
[388441418,1759169443614,-151.0,0.000237,10]
[388441419,1759169443623,-480.0,0.00023701,2]
[388441420,1759169443632,-480.0,0.00023701,2]
[388441421,1759169443641,-480.0,0.00023701,2]
[388441422,1759169443649,-480.0,0.00023701,2]
[388441423,1759169443658,-492.41258199,0.00023701,2]
[388441424,1759169443667,-174.66757281,0.00023701,2]
[388441425,1759169443676,-480.0,0.00023701,2]
[388441426,1759169443685,-402.01044459,0.00023701,2]
[388441427,1759169443694,-480.0,0.00023703,2]
[388441428,1759169443703,-441.645,0.00023703,4]
[388441429,1759169443712,-488.29,0.00023703,2]
[388441430,1759169443721,-480.0,0.00023704,2]
[388441431,1759169443730,-480.0,0.00023704,2]
[388441432,1759169443739,-480.0,0.00023704,2]
[388441433,1759169443747,-480.0,0.00023704,2]
[388441434,1759169443756,-480.0,0.00023704,2]
[388441435,1759169443767,-500.0,0.00023705,2]
[388441436,1759169443775,-480.0,0.00023705,2]
[388441437,1759169443784,-480.0,0.00023705,2]
[388441438,1759169443793,-1939.19,0.00023705,2]
[388441439,1759169443802,-834.26,0.00023705,2]
[388441440,1759169443812,-650.31,0.00023705,2]
[388441441,1759169443821,-639.6,0.00023705,2]
[388441442,1759169443830,-616.64,0.00023705,2]
[388441443,1759169443839,-480.0,0.00023705,2]
[388441444,1759169443848,-2000.04,0.00023705,2]
[388441445,1759169443857,-576.59,0.00023705,2]
[388441446,1759169443866,-539.31820529,0.00023705,2]
[388441447,1759169443875,-480.0,0.00023705,2]
[388441448,1759169443884,-621.91,0.00023705,2]
[388441449,1759169443893,-514.21,0.00023705,2]
[388441450,1759169443902,-480.0,0.00023705,2]
[388441451,1759169443911,-480.0,0.00023705,2]
[388441452,1759169443924,-480.0,0.00023705,2]
[388441453,1759169443932,-480.0,0.00023705,2]
[388441454,1759169443941,-480.0,0.00023705,2]
[388441455,1759169443950,-552.23,0.00023705,2]
[388441456,1759169443959,-480.0,0.00023705,2]
[388441457,1759169443967,-604.09,0.00023705,2]
[388441458,1759169443976,-1107.42,0.00023705,2]
[388441459,1759169443985,-524.66702181,0.00023705,2]
[388441460,1759169443994,-480.0,0.00023705,2]
[388441461,1759169444003,-480.0,0.00023705,2]
[388441462,1759169444012,-523.35,0.00023705,2]
[388441463,1759169444021,-492.43,0.00023705,2]
[388441464,1759169444030,-670.04,0.00023705,2]
[388441465,1759169444039,-532.4,0.00023705,2]
[388441466,1759169444048,-480.0,0.00023705,2]
[388441467,1759169444056,-620.72,0.00023705,2]
[388441468,1759169444065,-718.23,0.00023705,2]
[388441469,1759169444074,-1815.44,0.00023705,2]
[388441470,1759169444083,-480.0,0.00023705,2]
[388441471,1759169444092,-480.0,0.00023705,2]
[388441472,1759169444101,-480.0,0.00023705,2]
[388441473,1759169444110,-480.0,0.00023705,2]
[388441474,1759169444119,-517.51,0.00023705,2]
[388441475,1759169444128,-480.0,0.00023705,2]
[388441476,1759169444138,-656.67,0.00023705,2]
[388441477,1759169444147,-480.0,0.00023707,2]
[388441478,1759169444157,-480.0,0.00023707,2]
[388441479,1759169444166,-480.0,0.00023707,2]
[388441480,1759169444175,-921.41,0.00023707,2]
[388441481,1759169444185,-490.41,0.00023707,2]
[388441482,1759169444194,-480.0,0.00023707,2]
[388441483,1759169444204,-506.81,0.00023707,2]
[388441484,1759169444214,-480.0,0.00023707,2]
[388441485,1759169444223,-480.0,0.00023707,2]
[388441486,1759169444233,-567.5,0.00023707,2]
[388441487,1759169444243,-480.0,0.00023707,2]
[388441488,1759169444253,-1115.2,0.00023707,2]
[388441489,1759169444262,-480.0,0.00023707,2]
[388441490,1759169444272,-480.0,0.00023707,2]
[388441491,1759169444281,-480.0,0.00023707,2]
[388441492,1759169444291,-480.0,0.00023707,2]
[388441493,1759169444304,-480.0,0.00023707,2]
[388441494,1759169444314,-480.0,0.00023707,2]
[388441495,1759169444324,-595.8,0.00023707,2]
[388441496,1759169444333,-480.0,0.00023707,2]
[388441497,1759169444343,-480.0,0.00023707,2]
[388441498,1759169444354,-480.0,0.00023707,2]
[388441499,1759169444363,-568.5,0.00023707,2]
[388441500,1759169444373,-480.0,0.00023707,2]
[388441501,1759169444383,-480.0,0.00023707,2]
[388441502,1759169444393,-480.0,0.00023707,2]
[388441503,1759169444403,-544.26,0.00023707,2]
[388441504,1759169444414,-602.91,0.00023707,2]
[388441505,1759169444428,-480.0,0.00023707,2]
[388441506,1759169444441,-549.82,0.00023707,2]
[388441507,1759169444451,-480.0,0.00023707,2]
[388441508,1759169444461,-569.74,0.00023707,2]
[388441509,1759169444471,-496.22,0.00023707,2]
[388441510,1759169444482,-480.0,0.00023707,2]
[388441511,1759169444493,-480.0,0.00023707,2]
[388441512,1759169444505,-480.0,0.00023707,2]
[388441513,1759169444515,-862.18,0.00023707,2]
[388441514,1759169444524,-480.0,0.00023707,2]
[388441515,1759169444534,-1145.66,0.00023707,2]
[388441516,1759169444544,-480.0,0.00023707,2]
[388441517,1759169444553,-867.48,0.00023707,2]
[388441518,1759169444563,-480.0,0.00023707,2]
[388441519,1759169444572,-848.01,0.00023707,2]
[388441520,1759169444582,-480.0,0.00023707,2]
[388441521,1759169444591,-480.0,0.00023707,2]
[388441522,1759169444601,-669.24,0.00023707,2]
[388441523,1759169444611,-480.0,0.00023707,2]
[388441524,1759169444620,-653.62,0.00023707,2]
[388441525,1759169444630,-480.0,0.00023707,2]
[388441526,1759169444639,-480.0,0.00023707,2]
[388441527,1759169444649,-480.0,0.00023707,2]
[388441528,1759169444658,-480.0,0.00023707,2]
[388441529,1759169444668,-1115.66,0.00023707,2]
[388441530,1759169444677,-480.0,0.00023707,2]
[388441531,1759169444687,-480.0,0.00023707,2]
[388441532,1759169444697,-480.0,0.00023707,2]
[388441533,1759169444707,-533.37,0.00023707,2]
[388441534,1759169444716,-480.0,0.00023707,2]
[388441535,1759169444726,-480.0,0.00023707,2]
[388441536,1759169444736,-480.0,0.00023707,2]
[388441537,1759169444746,-567.75143692,0.00023707,2]
[388441538,1759169444756,-480.0,0.00023707,2]
[388441539,1759169444767,-487.59,0.00023707,2]
[388441540,1759169444776,-480.0,0.00023707,2]
[388441541,1759169444786,-583.46,0.00023707,2]
[388441542,1759169444796,-480.0,0.00023707,2]
[388441543,1759169444806,-480.0,0.00023707,2]
[388441544,1759169444816,-480.0,0.00023707,2]
[388441545,1759169444867,-510.72,0.00023707,2]
[388441546,1759169444876,-515.97,0.00023707,2]
[388441547,1759169444886,-480.0,0.00023707,2]
[388441548,1759169444895,-480.0,0.00023707,2]
[388441549,1759169444904,-480.0,0.00023707,2]
[388441550,1759169444913,-480.0,0.00023707,2]
[388441551,1759169444923,-408.98,0.00023707,2]
[388441552,1759169444932,-480.0,0.00023707,2]